bitfinex/quotes_BTCUSD_20240905
["timestamp","ask_amount","ask_price","bid_price","bid_amount"]
[1725544417968,0.175707,56913.0,56907.0,0.351448]
[1725544418165,0.22013133,56920.0,56905.0,0.35146]
[1725544418166,0.351413,56914.0,56905.0,0.35146]
[1725544418337,0.351413,56914.0,56908.0,0.001]
[1725544418544,0.175717,56910.0,56905.0,0.35146]
[1725544418746,0.351413,56914.0,56900.0,0.1671]
[1725544418956,0.00439261,56913.0,56905.0,0.17573]
[1725544419159,0.351426,56911.0,56906.0,0.175727]
[1725544419360,0.05253133,56919.0,56904.0,0.351466]
[1725544419361,0.17571,56912.0,56908.0,0.175722]
[1725544419591,0.22013133,56920.0,56908.0,0.008]
[1725544419592,0.351407,56914.0,56908.0,0.008]
[1725544419983,0.175714,56911.0,56908.0,0.008]
[1725544420190,0.175719,56909.0,56908.0,0.008]
[1725544420387,0.527157,56909.0,56908.0,0.008]
[1725544421062,0.351426,56911.0,56898.0,0.6511171]
[1725544421063,0.351444,56908.0,56900.0,0.175746]
[1725544421236,0.351444,56908.0,56893.0,0.351535]
[1725544421237,0.1417,56905.0,56888.0,0.001628]
[1725544421448,0.35154,56893.0,56888.0,0.177411]
[1725544421652,0.19423133,56905.0,56888.0,0.001628]
[1725544421883,0.175773,56892.0,56888.0,0.001628]
[1725544422083,0.175766,56894.0,56889.0,0.175778]
[1725544422334,0.17576,56896.0,56889.0,0.351559]
[1725544422522,0.1417,56905.0,56890.0,0.2996121]
[1725544422724,0.1417,56905.0,56888.0,0.001628]
[1725544422725,0.1712,56906.0,56900.0,0.351491]
[1725544422960,0.351439,56909.0,56908.0,0.012]
[1725544422961,0.175719,56909.0,56908.0,0.012]
[1725544423126,0.275719,56909.0,56908.0,0.012]
[1725544423364,0.351427,56911.0,56906.0,0.175726]
[1725544423531,0.175732,56905.0,56900.0,0.1387]
[1725544423682,0.1,56913.0,56902.0,0.175739]
[1725544423683,0.175727,56907.0,56902.0,0.175739]
[1725544423890,0.175727,56907.0,56903.0,0.175737]
[1725544424327,0.351433,56910.0,56900.0,0.351493]
[1725544424511,0.351433,56910.0,56898.0,0.2996121]
[1725544424512,0.175739,56903.0,56898.0,0.2996121]
[1725544424724,0.175739,56903.0,56899.0,0.175749]
[1725544425384,0.175742,56902.0,56897.0,0.175753]
[1725544425596,0.52721,56904.0,56899.0,0.175748]
[1725544425791,0.52721,56904.0,56894.0,0.2996121]
[1725544425792,0.351442,56909.0,56900.0,0.351491]
[1725544426006,0.351442,56909.0,56904.0,0.175733]
[1725544426007,0.175721,56909.0,56904.0,0.175733]
[1725544426260,0.175714,56911.0,56907.0,0.175723]
[1725544426497,0.351401,56915.0,56909.0,0.175718]
[1725544426701,0.05253133,56916.0,56904.0,0.175733]
[1725544426702,0.00439273,56914.0,56904.0,0.175733]
[1725544426903,0.175723,56908.0,56903.0,0.175734]
[1725544427116,0.17571,56912.0,56908.0,0.175721]
[1725544427346,0.05253133,56916.0,56909.0,0.175717]
[1725544427524,0.175711,56912.0,56907.0,0.527169]
[1725544427730,0.175711,56912.0,56906.0,0.2996121]
[1725544427731,0.1,56917.0,56906.0,0.2996121]
[1725544427963,0.1,56917.0,56909.0,0.175718]
[1725544427964,0.175707,56913.0,56909.0,0.175718]
[1725544428223,0.1,56917.0,56898.0,0.4708121]
[1725544428224,0.175723,56908.0,56898.0,0.4708121]
[1725544428432,0.351425,56912.0,56905.0,0.17573]
[1725544428678,0.175719,56909.0,56905.0,0.17573]
[1725544428899,0.175719,56909.0,56898.0,0.4708121]
[1725544428900,0.05253133,56912.0,56898.0,0.4708121]
[1725544429114,0.05253133,56912.0,56902.0,0.175739]
[1725544429115,0.05253133,56910.0,56902.0,0.175739]
[1725544429320,0.05253133,56910.0,56899.0,0.351496]
[1725544429321,0.175728,56906.0,56899.0,0.351496]
[1725544429526,0.05253133,56909.0,56904.0,0.176733]
[1725544429734,0.351441,56909.0,56904.0,0.176733]
[1725544429967,0.175719,56909.0,56905.0,0.17573]
[1725544430193,0.05253133,56911.0,56902.0,0.2996121]
[1725544430396,0.05253133,56912.0,56911.0,0.175712]
[1725544430606,0.351364,56921.0,56912.0,0.3088]
[1725544430607,0.05253133,56918.0,56912.0,0.3088]
[1725544430818,0.05253133,56919.0,56918.0,0.175691]
[1725544431021,0.078797,56921.0,56919.0,0.175687]
[1725544431022,0.05253133,56921.0,56919.0,0.175687]
[1725544431238,0.05253133,56922.0,56919.0,0.175686]
[1725544431460,0.05253133,56922.0,56917.0,0.175693]
[1725544431461,0.175683,56921.0,56917.0,0.175693]
[1725544431658,0.05253133,56922.0,56919.0,0.175687]
[1725544431869,0.176491,56923.0,56918.0,0.2996121]
[1725544431870,0.000814,56923.0,56918.0,0.2996121]
[1725544432115,0.000814,56923.0,56922.0,0.527035]
[1725544432325,0.000814,56923.0,56922.0,0.175678]
[1725544432773,0.000814,56923.0,56919.0,0.351373]
[1725544432774,0.000814,56923.0,56921.0,0.175681]
[1725544433405,0.000814,56923.0,56917.0,0.351383]
[1725544433406,0.000814,56923.0,56920.0,0.175684]
[1725544433615,0.000814,56923.0,56919.0,0.004]
[1725544433888,0.351359,56922.0,56919.0,0.004]
[1725544434107,0.000814,56923.0,56915.0,0.351396]
[1725544434317,0.17649,56923.0,56921.0,0.006]
[1725544434523,0.17649,56923.0,56921.0,0.002]
[1725544434732,0.175678,56922.0,56921.0,0.002]
[1725544434943,0.527055,56920.0,56919.0,0.004]
[1725544435205,0.527055,56920.0,56910.0,0.2996121]
[1725544435206,0.527055,56920.0,56915.0,0.002]
[1725544435207,0.175698,56916.0,56915.0,0.002]
[1725544435639,0.35713133,56924.0,56915.0,0.002]
[1725544435868,0.000814,56923.0,56920.0,0.175682]
[1725544436118,0.000814,56923.0,56918.0,0.351382]
[1725544436337,0.000814,56923.0,56921.0,0.175681]
[1725544436552,0.000814,56923.0,56916.0,0.351394]
[1725544436756,0.000814,56923.0,56921.0,0.003]
[1725544436975,0.000814,56923.0,56922.0,0.8266471]
[1725544437189,0.000814,56923.0,56922.0,1.4817041]
[1725544437410,0.000814,56923.0,56922.0,1.8330611]
[1725544437617,0.000814,56923.0,56922.0,2.4940302]
[1725544437836,0.000814,56923.0,56922.0,1.8330611]
[1725544438270,0.000814,56923.0,56922.0,1.1343471]
[1725544438482,0.000814,56923.0,56922.0,1.4837041]
[1725544439145,0.000814,56923.0,56922.0,1.8350611]
[1725544439372,0.000814,56923.0,56922.0,1.4837041]
[1725544439824,0.000814,56923.0,56922.0,1.4957041]
[1725544440030,0.000814,56923.0,56922.0,1.8570611]
[1725544440534,0.000814,56923.0,56922.0,2.5220302]
[1725544440751,0.000814,56923.0,56922.0,2.5100302]
[1725544440950,0.000814,56923.0,56922.0,1.8570611]
[1725544441152,0.00082,56934.0,56924.0,0.01]
[1725544441407,0.00082,56934.0,56933.0,1.8744271]
[1725544441641,0.00082,56934.0,56933.0,1.9744271]
[1725544441866,0.1876851,56955.0,56949.0,0.351189]
[1725544442109,0.0121071,56955.0,56949.0,0.2996121]
[1725544442340,0.0121071,56955.0,56954.0,0.52674]
[1725544442576,0.0121071,56955.0,56954.0,0.8779]
[1725544443298,0.0121071,56955.0,56954.0,1.39796]
[1725544443798,0.0121071,56955.0,56954.0,1.0468]
[1725544444284,0.0121071,56955.0,56954.0,1.0598]
[1725544444519,0.0121071,56955.0,56954.0,1.0738]
[1725544444742,0.0121071,56955.0,56954.0,1.0608]
[1725544444976,0.0121071,56955.0,56954.0,1.0468]
[1725544445226,0.0121071,56955.0,56954.0,1.0748]
[1725544445499,0.0121071,56955.0,56954.0,1.46096]
[1725544445721,0.0121071,56955.0,56954.0,1.81012]
[1725544445971,0.0121071,56955.0,56954.0,1.59596]
[1725544446437,0.0121071,56955.0,56954.0,1.55896]
[1725544446671,0.0121071,56955.0,56954.0,1.53496]
[1725544446902,0.00081,56961.0,56960.0,1.23893]
[1725544447135,0.00081,56961.0,56960.0,1.8320421]
[1725544447857,0.5,56997.0,56978.0,0.2996121]
[1725544448084,0.002,57006.0,56974.0,0.1626]
[1725544448085,0.00438704,56996.0,56990.0,0.2996121]
[1725544448303,0.350911,56995.0,56990.0,0.2996121]
[1725544448536,0.350871,57001.0,56990.0,0.8260191]
[1725544448768,0.350892,56998.0,56990.0,0.6472811]
[1725544448997,0.350855,57004.0,56990.0,0.6472791]
[1725544449282,0.070361,57007.0,56994.0,0.2996121]
[1725544449507,0.070361,57007.0,56998.0,0.2996121]
[1725544449508,0.175433,57002.0,56998.0,0.2996121]
[1725544449749,0.350849,57005.0,56998.0,0.2996121]
[1725544449989,0.0043858,57004.0,56990.0,0.523136]
[1725544450240,0.485458,57003.0,56990.0,0.003]
[1725544450551,0.175466,56991.0,56990.0,0.003]
[1725544450721,0.175466,56991.0,56986.0,0.175479]
[1725544450953,0.2985,56998.0,56987.0,0.2996121]
[1725544451178,0.2985,56998.0,56985.0,0.350967]
[1725544451179,0.175455,56995.0,56992.0,0.2996121]
[1725544451417,0.175449,56997.0,56992.0,0.2996121]
[1725544451650,0.350865,57002.0,56997.0,0.161]
[1725544451865,0.175443,56999.0,56996.0,0.2996121]
[1725544452098,0.350856,57004.0,56996.0,0.2996121]
[1725544452326,0.1,57005.0,57000.0,0.2996121]
[1725544452549,0.175435,57001.0,56996.0,0.4750611]
[1725544452792,0.1413,57010.0,57000.0,0.2996121]
[1725544453023,0.10438571,57009.0,56996.0,0.2996121]
[1725544453282,0.175451,56996.0,56992.0,0.4606121]
[1725544453501,0.175451,56996.0,56992.0,0.2996121]
[1725544453502,0.350904,56996.0,56992.0,0.2996121]
[1725544453713,0.350912,56995.0,56989.0,0.175471]
[1725544453919,0.175461,56993.0,56988.0,0.4750871]
[1725544454133,0.173,56998.0,56987.0,0.175476]
[1725544454134,0.1408,56997.0,56987.0,0.175476]
[1725544454338,0.17547,56990.0,56985.0,0.175481]
[1725544454549,0.350933,56991.0,56984.0,0.2996121]
[1725544454753,0.17547,56990.0,56986.0,0.175481]
[1725544454980,0.175461,56993.0,56985.0,0.350968]
[1725544455222,0.350907,56996.0,56988.0,0.4750861]
[1725544455223,0.175463,56992.0,56988.0,0.4750861]
[1725544455434,0.1408,56997.0,56988.0,0.4750861]
[1725544455435,0.31625,56997.0,56992.0,0.175461]
[1725544455653,0.175453,56996.0,56993.0,0.2996121]
[1725544455855,0.175447,56998.0,56994.0,0.175456]
[1725544456065,0.350877,57000.0,56993.0,0.2996121]
[1725544456269,0.46209708,57004.0,57000.0,0.175436]
[1725544456487,0.46209708,57004.0,56998.0,0.511888]
[1725544456488,0.350829,57008.0,57001.0,0.2996121]
[1725544456690,0.1,57007.0,57001.0,0.2996121]
[1725544456905,0.175427,57004.0,57001.0,0.2996121]
[1725544457124,0.1,57009.0,57001.0,0.4310121]
[1725544457341,0.1,57009.0,57005.0,0.2996121]
[1725544457342,0.35521461,57008.0,57005.0,0.2996121]
[1725544457585,0.00102175,57012.0,57005.0,0.2996121]
[1725544457806,0.00102175,57012.0,57009.0,0.4750221]
[1725544458026,0.00102175,57012.0,57011.0,0.175404]
[1725544458259,0.00102175,57012.0,57011.0,1.038722]
[1725544458481,0.00102175,57012.0,57011.0,1.389531]
[1725544458696,0.00102175,57012.0,57011.0,0.687913]
[1725544459152,0.00102175,57012.0,57011.0,1.389531]
[1725544459597,0.0114171,57013.0,57011.0,1.389531]
[1725544459598,0.21187081,57026.0,57017.0,0.350768]
[1725544459830,0.6589,57029.0,57011.0,0.1617]
[1725544459831,0.31265,57029.0,57025.0,0.175359]
[1725544460045,0.175352,57028.0,57024.0,0.175363]
[1725544460282,0.1373,57029.0,57022.0,0.2996121]
[1725544460499,0.1373,57029.0,57023.0,0.175366]
[1725544460725,0.1373,57029.0,57022.0,0.2996121]
[1725544460726,0.350707,57028.0,57022.0,0.2996121]
[1725544460998,0.17535,57029.0,57026.0,0.2996121]
[1725544461248,0.350674,57033.0,57026.0,0.2996121]
[1725544461470,0.00438367,57032.0,57026.0,0.2996121]
[1725544461691,0.175355,57027.0,57026.0,0.2996121]
[1725544461895,0.175371,57022.0,57018.0,0.1618]
[1725544462127,0.00438381,57029.0,57013.0,0.1618]
[1725544462128,0.1711,57025.0,57013.0,0.1618]
[1725544462360,0.350812,57011.0,57004.0,0.2996121]
[1725544462603,0.1313,57023.0,57004.0,0.2996121]
[1725544462604,0.350798,57013.0,57004.0,0.2996121]
[1725544462845,0.350798,57013.0,57003.0,0.1618]
[1725544462846,0.175405,57011.0,57008.0,0.2996121]
[1725544463079,0.2313,57023.0,57008.0,0.2996121]
[1725544463315,0.17541,57009.0,57008.0,0.2996121]
[1725544463551,0.0043852,57021.0,57000.0,0.6014121]
[1725544463779,0.350786,57015.0,57000.0,0.6014121]
[1725544463995,0.00438547,57014.0,57001.0,0.52650515]
[1725544464211,0.1754,57013.0,57008.0,0.3136121]
[1725544464436,0.00438548,57021.0,57012.0,0.2996121]
[1725544464649,0.192845,57020.0,57008.0,0.3006121]
[1725544464881,0.192845,57020.0,57008.0,0.2996121]
[1725544464882,0.10438496,57019.0,57008.0,0.2996121]
[1725544465104,0.350781,57016.0,57008.0,0.2996121]
[1725544465308,0.10438496,57019.0,57008.0,0.2996121]
[1725544465309,0.175399,57013.0,57008.0,0.2996121]
[1725544465525,0.00438496,57012.0,57004.0,0.2996121]
[1725544465739,0.35082,57010.0,57000.0,0.6064121]
[1725544466002,0.35081,57011.0,57000.0,0.3068]
[1725544466003,0.175429,57003.0,57000.0,0.3068]
[1725544466236,0.0043853,57009.0,57000.0,0.3068]
[1725544466237,0.175428,57004.0,57000.0,0.477237]
[1725544466449,0.35084,57006.0,57001.0,0.011]
[1725544466658,0.350813,57011.0,57001.0,0.011]
[1725544466875,0.35073,57024.0,57000.0,0.3018]
[1725544467076,0.34997216,57018.0,57000.0,0.3018]
[1725544467297,0.175408,57010.0,57000.0,0.3158]
[1725544467505,0.10438516,57018.0,57000.0,0.3158]
[1725544467506,0.350799,57013.0,57000.0,0.3158]
[1725544467722,0.175421,57006.0,57000.0,0.1915]
[1725544467923,0.175423,57005.0,57000.0,0.1775]
[1725544468140,0.1,57018.0,57001.0,0.52650515]
[1725544468141,0.1751,57017.0,57001.0,0.52650515]
[1725544468345,0.1751,57017.0,57000.0,0.4631121]
[1725544468346,0.175406,57011.0,57000.0,0.4631121]
[1725544468568,0.350803,57013.0,57000.0,0.4631121]
[1725544468774,0.175407,57010.0,57000.0,0.4631121]
[1725544468990,0.350817,57010.0,57000.0,0.1635]
[1725544469216,0.525875,57017.0,56996.0,0.1411]
[1725544469217,0.175444,56998.0,56996.0,0.1411]
[1725544469448,0.175444,56998.0,56979.0,0.01]
[1725544469449,0.175474,56989.0,56984.0,0.68660515]
[1725544469662,0.175473,56989.0,56985.0,0.175483]
[1725544469873,0.350909,56995.0,56984.0,0.1601]
[1725544470091,0.350894,56998.0,56986.0,0.17548]
[1725544470092,0.175471,56990.0,56986.0,0.17548]
[1725544470303,0.175466,56991.0,56987.0,0.175477]
[1725544470524,0.6504911,57000.0,56984.0,0.511072]
[1725544470525,0.00438662,56993.0,56984.0,0.1691]
[1725544470757,0.5,57003.0,56984.0,0.02]
[1725544470758,0.175484,56985.0,56984.0,0.02]
[1725544470988,0.175484,56985.0,56984.0,0.009]
[1725544471193,0.3553611,56985.0,56980.0,0.1669]
[1725544471415,0.1682,56990.0,56986.0,0.006]
[1725544471639,0.1312,56992.0,56986.0,0.006]
[1725544471640,0.175478,56987.0,56986.0,0.006]
[1725544472079,0.1312,56992.0,56986.0,0.006]
[1725544472080,0.175472,56990.0,56986.0,0.006]
[1725544472354,0.17985915,56989.0,56986.0,0.006]
[1725544472592,0.17986015,56989.0,56980.0,0.1669]
[1725544472816,0.350926,56992.0,56980.0,0.1669]
[1725544473034,0.350904,56996.0,56984.0,0.012]
[1725544473263,0.1764,57003.0,56985.0,0.2996121]
[1725544473483,0.21187081,57008.0,56990.0,0.132]
[1725544473484,0.1764,57008.0,56990.0,0.132]
[1725544473717,0.350855,57004.0,56990.0,0.132]
[1725544473948,0.175435,57001.0,56990.0,0.132]
[1725544474169,0.175427,57004.0,56990.0,0.132]
[1725544474398,0.17980888,57005.0,56990.0,0.132]
[1725544474625,0.00438588,57005.0,56991.0,0.1637]
[1725544475063,0.002,57004.0,56991.0,0.1637]
[1725544475280,0.35086,57003.0,56991.0,0.1637]
[1725544475501,0.002,57004.0,56991.0,0.1637]
[1725544476147,0.175433,57002.0,56991.0,0.1637]
[1725544476374,0.350825,57009.0,56991.0,0.1637]
[1725544476592,0.175425,57005.0,56991.0,0.1637]
[1725544476802,0.00438588,57004.0,56993.0,0.2996121]
[1725544477018,0.350825,57009.0,56994.0,0.1645]
[1725544477236,0.175421,57006.0,56994.0,0.1645]
[1725544477656,0.00438569,57008.0,56994.0,0.1645]
[1725544477860,0.2996121,57013.0,56994.0,0.1645]
[1725544478078,0.175455,56995.0,56991.0,0.015]
[1725544478316,0.2996121,57005.0,56991.0,0.006]
[1725544478547,0.526389,56992.0,56991.0,0.006]
[1725544478803,0.350871,57001.0,56991.0,0.006]
[1725544479032,0.1,57004.0,56991.0,0.006]
[1725544479033,0.175442,56999.0,56991.0,0.006]
[1725544479255,0.1,57004.0,56991.0,0.006]
[1725544479256,0.00438637,56998.0,56991.0,0.006]
[1725544479539,0.1,57004.0,56990.0,0.1681]
[1725544479540,0.45524316,57004.0,56992.0,0.00350893]
[1725544479753,0.1,57004.0,56990.0,0.1681]
[1725544479964,0.00438589,57003.0,56994.0,0.004]
[1725544480171,0.350837,57007.0,56994.0,0.004]
[1725544480378,0.1,57014.0,56996.0,0.3041]
[1725544480579,0.350814,57011.0,56997.0,0.0035084]
[1725544480790,0.2472045,57010.0,56996.0,0.3041]
[1725544481013,0.0043855,57010.0,56996.0,0.3041]
[1725544481219,0.175418,57007.0,56996.0,0.3041]
[1725544481406,0.175421,57006.0,56996.0,0.3041]
[1725544481847,0.350815,57011.0,56996.0,0.3041]
[1725544481848,0.0043855,57005.0,56996.0,0.3041]
[1725544482053,0.175426,57004.0,56996.0,0.3041]
[1725544482271,0.175429,57003.0,56996.0,0.3081]
[1725544482472,0.00438584,57006.0,56996.0,0.3081]
[1725544482914,0.350816,57010.0,56997.0,0.2996121]
[1725544483131,0.350842,57006.0,56996.0,0.3081]
[1725544483360,0.175444,56998.0,56996.0,0.011]
[1725544483574,0.53072822,56997.0,56996.0,0.007]
[1725544483794,0.175462,56993.0,56991.0,0.1636]
[1725544484020,0.350898,56997.0,56991.0,0.1636]
[1725544484234,0.175457,56994.0,56991.0,0.1636]
[1725544484451,0.35529046,56996.0,56991.0,0.1636]
[1725544484452,0.17983746,56996.0,56991.0,0.1636]
[1725544484667,0.17983946,56996.0,56991.0,0.1636]
[1725544484883,0.00438646,56996.0,56991.0,0.1636]
[1725544485125,0.00438646,56996.0,56991.0,0.1776]
[1725544485336,0.00438653,56998.0,56991.0,0.1636]
[1725544485560,0.00438653,56998.0,56996.0,0.014]
[1725544485561,0.877237,56997.0,56996.0,0.014]
[1725544486232,0.526342,56997.0,56996.0,0.014]
[1725544486458,0.35088,57000.0,56986.0,0.175626]
[1725544486459,0.350903,56996.0,56986.0,0.175626]
[1725544486671,0.2996121,57000.0,56986.0,0.175626]
[1725544486672,0.175471,56990.0,56986.0,0.175626]
[1725544486881,0.175468,56991.0,56986.0,0.175626]
[1725544487093,0.35531582,56992.0,56986.0,0.175626]
[1725544487094,0.175465,56992.0,56986.0,0.175626]
[1725544487324,0.00438682,56992.0,56986.0,0.175626]
[1725544487558,0.00438682,56994.0,56986.0,0.175626]
[1725544487786,0.352817,57010.0,56988.0,0.2996121]
[1725544487787,0.1621,57008.0,56988.0,0.2996121]
[1725544488006,0.1621,57008.0,56999.0,0.1663]
[1725544488007,0.175421,57006.0,56999.0,0.1663]
[1725544488253,0.5,57015.0,56999.0,0.1663]
[1725544488254,0.295,57018.0,57000.0,0.1288]
[1725544488475,0.175402,57012.0,57003.0,0.2996121]
[1725544488685,0.350791,57014.0,57000.0,0.1288]
[1725544488686,0.00438531,57011.0,57000.0,0.1288]
[1725544488911,0.17979031,57011.0,57001.0,0.00350825]
[1725544489128,0.00438531,57011.0,57001.0,0.00350825]
[1725544489347,0.175403,57012.0,57001.0,0.00350825]
[1725544489565,0.175403,57012.0,57000.0,0.1288]
[1725544489566,0.175409,57010.0,57000.0,0.1288]
[1725544489778,0.350796,57014.0,57001.0,0.00350825]
[1725544490001,0.175411,57009.0,57000.0,0.1288]
[1725544490227,0.10438531,57013.0,57000.0,0.1288]
[1725544490228,0.175408,57010.0,57000.0,0.1288]
[1725544490466,0.002,57025.0,56986.0,0.794726]
[1725544490467,0.000813,57020.0,57009.0,0.1732]
[1725544490681,0.000813,57020.0,57017.0,0.2996121]
[1725544490901,0.000813,57020.0,57018.0,0.1665]
[1725544491132,0.000813,57020.0,57019.0,0.52614]
[1725544491376,0.000813,57020.0,57019.0,0.8769]
[1725544492934,0.000813,57020.0,57019.0,1.1797]
[1725544493178,0.000813,57020.0,57019.0,1.66046]
[1725544493596,0.000813,57020.0,57019.0,1.67346]
[1725544493818,0.000813,57020.0,57019.0,2.04022]
[1725544494048,0.000813,57020.0,57019.0,1.67646]
[1725544494265,0.000813,57020.0,57019.0,2.01322]
[1725544494486,0.000813,57020.0,57019.0,2.01622]
[1725544494701,0.000813,57020.0,57019.0,2.04022]
[1725544494935,0.000813,57020.0,57019.0,2.02622]
[1725544495153,0.000813,57020.0,57019.0,2.04022]
[1725544495645,0.000813,57020.0,57019.0,2.02722]
[1725544495873,0.000813,57020.0,57019.0,1.67446]
[1725544496106,0.000813,57020.0,57019.0,1.66446]
[1725544496332,0.000813,57020.0,57019.0,1.65446]
[1725544496551,0.000813,57020.0,57019.0,1.66446]
[1725544496770,0.000813,57020.0,57019.0,1.67446]
[1725544497006,0.000813,57020.0,57019.0,1.68846]
[1725544497473,0.000813,57020.0,57019.0,1.66046]
[1725544497948,0.000813,57020.0,57019.0,1.68846]
[1725544498182,0.000813,57020.0,57019.0,2.03922]
[1725544499558,0.000813,57026.0,57025.0,2.0552651]
[1725544500033,0.000813,57026.0,57025.0,1.7045421]
[1725544500963,0.000813,57026.0,57025.0,1.7185421]
[1725544501195,0.000813,57026.0,57025.0,1.7325421]
[1725544501454,0.000813,57026.0,57025.0,1.3818191]
[1725544501666,0.000813,57026.0,57025.0,0.028]
[1725544501889,0.000813,57026.0,57025.0,0.203361]
[1725544502108,0.000813,57026.0,57025.0,0.5029731]
[1725544502326,0.000813,57026.0,57025.0,0.3276121]
[1725544503297,0.000813,57026.0,57025.0,0.028]
[1725544503298,0.526888,57026.0,57025.0,0.028]
[1725544503536,0.877605,57026.0,57025.0,0.028]
[1725544503758,1.228322,57026.0,57025.0,0.028]
[1725544503975,1.847452,57026.0,57025.0,0.028]
[1725544504201,1.188205,57026.0,57025.0,0.028]
[1725544504385,0.311413,57026.0,57012.0,0.2996121]
[1725544504639,0.350743,57022.0,57013.0,0.52650515]
[1725544504857,0.35510958,57025.0,57012.0,0.6504151]
[1725544504858,0.00438458,57021.0,57012.0,0.6504151]
[1725544505102,0.00438458,57024.0,57013.0,0.350792]
[1725544505347,0.311413,57026.0,57019.0,0.350756]
[1725544505348,0.000813,57026.0,57019.0,0.350756]
[1725544505589,0.000813,57026.0,57018.0,0.1659]
[1725544505590,0.000813,57026.0,57024.0,0.175363]
[1725544505803,0.000813,57026.0,57022.0,0.17537]
[1725544506024,0.175366,57024.0,57020.0,0.175375]
[1725544506269,0.35153,57026.0,57019.0,0.1431]
[1725544506270,0.175368,57023.0,57019.0,0.1431]
[1725544506500,0.35153,57026.0,57022.0,0.17537]
[1725544506501,0.000813,57026.0,57022.0,0.17537]
[1725544506734,0.000813,57026.0,57019.0,0.1431]
[1725544506735,0.000813,57026.0,57025.0,1.1764191]
[1725544506995,0.000813,57026.0,57025.0,1.3423191]
[1725544507221,0.000813,57026.0,57025.0,1.6930421]
[1725544508113,0.000813,57026.0,57025.0,1.3423191]
[1725544508335,0.000813,57026.0,57025.0,1.3563191]
[1725544509041,0.000813,57026.0,57025.0,1.7070421]
[1725544509295,0.000813,57026.0,57025.0,1.3563191]
[1725544509820,0.000813,57026.0,57025.0,1.0195961]
[1725544510043,0.000813,57026.0,57025.0,1.3703191]
[1725544510771,0.000813,57026.0,57025.0,1.7210421]
[1725544511008,0.000813,57026.0,57025.0,1.3703191]
[1725544511946,0.000813,57026.0,57025.0,1.7210421]
[1725544512399,0.000813,57026.0,57025.0,1.8635421]
[1725544512621,0.000813,57026.0,57025.0,1.8735421]
[1725544512898,0.000813,57026.0,57025.0,2.2242651]
[1725544513130,0.000813,57026.0,57025.0,2.7199881]
[1725544513378,0.00021165,57038.0,57037.0,2.1788321]
[1725544513598,0.00081,57056.0,57037.0,2.1788321]
[1725544513599,0.00081,57056.0,57055.0,0.876345]
[1725544513876,0.00081,57056.0,57055.0,1.3414571]
[1725544514105,0.00081,57056.0,57041.0,0.1402]
[1725544514106,0.00081,57056.0,57050.0,0.1655]
[1725544514328,0.00081,57056.0,57055.0,0.876345]
[1725544514549,0.00081,57056.0,57055.0,1.226883]
[1725544514775,0.00081,57056.0,57055.0,0.876345]
[1725544515011,0.00081,57056.0,57055.0,1.535583]
[1725544515241,0.00081,57056.0,57055.0,1.182045]
[1725544515518,0.00081,57056.0,57055.0,1.532583]
[1725544516713,0.00081,57056.0,57055.0,1.535583]
[1725544516952,0.00081,57056.0,57055.0,1.532583]
[1725544517253,0.00081,57056.0,57055.0,1.182045]
[1725544517497,0.00081,57056.0,57055.0,1.210045]
[1725544518249,0.00081,57056.0,57055.0,0.859507]
[1725544518527,0.00081,57056.0,57055.0,0.368769]
[1725544518784,0.526608,57056.0,57055.0,0.028]
[1725544519502,1.400645,57056.0,57055.0,0.028]
[1725544519751,0.341176,57056.0,57055.0,0.028]
[1725544519987,3.5974781,57056.0,57055.0,0.028]
[1725544520229,3.34211933,57056.0,57055.0,0.028]
[1725544520481,3.14450133,57056.0,57055.0,0.028]
[1725544520731,3.14650133,57056.0,57055.0,0.028]
[1725544520966,3.14650133,57056.0,57038.0,0.001626]
[1725544520967,0.175318,57039.0,57038.0,0.001626]
[1725544521200,0.876592,57039.0,57038.0,0.001626]
[1725544521425,1.792517,57039.0,57038.0,0.001626]
[1725544521659,1.436129,57039.0,57038.0,0.001626]
[1725544521881,1.085492,57039.0,57038.0,0.001626]
[1725544522102,0.943692,57039.0,57038.0,0.001626]
[1725544523034,2.163541,57039.0,57038.0,0.001626]
[1725544523471,2.163541,57039.0,57038.0,0.014626]
[1725544523704,2.25288529,57039.0,57038.0,0.014626]
[1725544523929,2.60452229,57039.0,57038.0,0.014626]
[1725544524414,0.876885,57020.0,57019.0,0.001626]
[1725544524646,0.526131,57020.0,57019.0,0.001626]
[1725544525998,0.876885,57020.0,57019.0,0.001626]
[1725544526276,0.526131,57020.0,57019.0,0.001626]
[1725544526947,1.012285,57020.0,57019.0,0.001626]
[1725544527473,1.945651,57020.0,57019.0,0.012626]
[1725544527688,0.276377,57020.0,57019.0,0.012626]
[1725544527904,0.63151587,57020.0,57019.0,0.001626]
[1725544528145,0.98126987,57020.0,57019.0,0.001626]
[1725544528381,0.98126987,57020.0,57019.0,0.006626]
[1725544528599,2.04470287,57020.0,57019.0,0.006626]
[1725544528820,1.73395687,57020.0,57019.0,0.006626]
[1725544529045,2.27951087,57020.0,57019.0,0.006626]
[1725544529279,2.28951087,57020.0,57019.0,0.006626]
[1725544529523,2.43091087,57020.0,57019.0,0.006626]
[1725544529759,2.43091087,57020.0,57019.0,0.001626]
[1725544530022,2.43191087,57020.0,57019.0,0.007626]
[1725544530250,2.41991087,57020.0,57019.0,0.007626]
[1725544530484,2.06915687,57020.0,57019.0,0.007626]
[1725544530715,2.04615687,57020.0,57019.0,0.007626]
[1725544530965,2.08194494,57020.0,57019.0,0.007626]
[1725544531219,2.09494494,57020.0,57019.0,0.007626]
[1725544531474,2.09694494,57020.0,57019.0,0.007626]
[1725544531732,2.45769894,57020.0,57019.0,0.007626]
[1725544531993,2.49326648,57020.0,57019.0,5.2e-07]
[1725544532208,2.14454725,57020.0,57019.0,5.2e-07]